bitfinex-derivatives/quotes_ETHF0:USTF0_20250904
["timestamp","ask_amount","ask_price","bid_price","bid_amount"]
[1757016965103,1.06938594,4303.4,4302.8,3.2078]
[1757016965305,0.434,4303.2,4302.8,3.2078]
[1757016965503,1.06938594,4303.1,4302.8,3.2078]
[1757016965806,0.63538594,4303.0,4302.8,3.2078]
[1757016966006,0.434,4302.9,4302.8,3.2078]
[1757016966204,0.1854,4302.5,4302.3,3.2078]
[1757016966509,1.06938594,4302.4,4302.3,3.2078]
[1757016966700,1.07082014,4302.4,4302.3,3.2078]
[1757016967215,0.63682014,4302.4,4302.3,3.2078]
[1757016968399,1.07087467,4302.4,4302.3,3.2078]
[1757016970205,0.1854,4302.0,4301.8,3.2078]
[1757016970503,0.63703598,4301.9,4301.8,3.2078]
[1757016971608,1.07103598,4301.9,4301.8,3.2078]
[1757016972808,0.434,4301.9,4301.8,3.2078]
[1757016973010,1.0712464,4301.9,4301.8,3.2078]
[1757016973205,0.434,4301.9,4301.8,3.2078]
[1757016973600,1.07140838,4301.9,4301.8,3.2078]
[1757016974204,0.63740838,4301.9,4301.2,3.2078]
[1757016974406,0.434,4301.4,4301.2,3.2078]
[1757016974811,0.1854,4302.0,4301.2,3.2078]
[1757016974812,0.434,4301.9,4301.2,3.2078]
[1757016975111,0.434,4301.6,4301.2,3.4498]
[1757016975312,0.434,4301.4,4301.2,3.4498]
[1757016977506,0.63889123,4301.3,4301.2,3.4498]
[1757016977711,1.08239123,4301.3,4301.2,3.4498]
[1757016977909,0.4435,4302.0,4301.2,3.4498]
[1757016978110,3.8367,4302.5,4301.9,3.2078]
[1757016978412,0.4435,4302.2,4301.9,3.2078]
[1757016978611,1.08237443,4302.1,4301.9,3.2078]
[1757016978813,0.63887443,4302.0,4301.9,3.2078]
[1757016980307,0.1891,4301.5,4301.4,3.2078]
[1757016980506,0.6326,4301.5,4301.4,3.2078]
[1757016980706,1.26560275,4301.5,4301.4,3.2078]
[1757016982309,1.26560275,4301.5,4300.8,0.242]
[1757016982310,0.1891,4301.0,4300.8,3.2078]
[1757016982509,1.07650275,4300.9,4300.8,3.2078]
[1757016982814,1.07650275,4300.9,4300.3,3.2078]
[1757016983112,0.63300275,4300.8,4300.3,3.2078]
[1757016983314,0.63300275,4300.7,4300.3,3.2078]
[1757016983508,0.1891,4301.0,4300.3,3.2078]
[1757016983509,1.07650275,4300.6,4300.3,3.2078]
[1757016983709,0.63300275,4300.5,4300.4,0.242]
[1757016983910,0.1891,4301.5,4300.4,0.242]
[1757016984116,0.63336389,4301.4,4301.1,3.2078]
[1757016984411,0.4435,4301.2,4301.1,3.2078]
[1757016984615,1.07686389,4301.2,4301.1,3.2078]
[1757016985215,1.07686389,4301.2,4300.7,0.242]
[1757016985413,0.4435,4300.9,4300.7,0.242]
[1757016985611,0.4435,4300.7,4300.5,3.2078]
[1757016985809,0.4435,4300.9,4300.5,3.2078]
[1757016986005,0.1891,4301.0,4300.5,3.2078]
[1757016986006,0.6332145,4300.8,4300.5,3.2078]
[1757016986214,0.4435,4300.6,4300.5,3.2078]
[1757016986512,3.2078,4301.6,4300.5,3.2078]
[1757016986814,0.4435,4301.9,4301.3,3.2078]
[1757016987008,0.62717653,4301.8,4301.4,0.242]
[1757016987210,0.242,4302.7,4301.4,0.242]
[1757016987517,0.1891,4301.5,4301.4,0.242]
[1757016987711,0.6326,4301.5,4301.4,0.242]
[1757016988215,0.4435,4301.4,4301.3,3.2078]
[1757016993808,0.4435,4301.4,4299.9,0.4437]
[1757016993809,4.67599,4301.4,4299.9,0.4437]
[1757016994010,0.4435,4300.9,4300.7,3.2078]
[1757016994625,0.4435,4301.4,4300.8,0.4437]
[1757016995214,3.2078,4301.6,4300.9,0.243]
[1757016995523,3.2078,4301.6,4301.1,0.4437]
[1757016995723,0.4435,4301.8,4301.3,0.4437]
[1757016995914,3.2078,4302.2,4301.4,0.243]
[1757016996114,3.2078,4302.2,4301.5,0.5975]
[1757016996323,3.2078,4302.7,4301.9,3.2078]
[1757016996523,0.4435,4302.4,4302.0,0.66136]
[1757016996723,0.1891,4302.5,4302.0,0.243]
[1757016996916,0.4435,4302.4,4302.0,0.243]
[1757016997518,0.6326,4302.0,4301.9,3.2078]
[1757016997713,0.6326,4302.0,4301.5,0.243]
[1757016998122,0.1891,4302.0,4301.5,41.043]
[1757016998319,0.4435,4301.9,4301.5,41.043]
[1757016998718,0.1891,4302.0,4301.5,0.243]
[1757016999119,0.4435,4301.9,4301.5,0.243]
[1757016999320,0.4435,4302.4,4301.6,0.23246]
[1757016999523,0.4435,4302.4,4301.7,0.243]
[1757016999925,0.1891,4302.5,4301.4,44.0078]
[1757016999926,0.1891,4301.5,4301.4,3.2078]
[1757017000130,0.6326,4301.5,4301.4,3.2078]
[1757017000324,0.6326,4301.5,4301.4,3.4508]
[1757017001928,0.6326,4301.5,4301.4,3.2078]
[1757017002134,0.6326,4301.0,4300.9,3.2078]
[1757017002326,0.1891,4301.0,4300.6,0.243]
[1757017002629,0.4435,4300.9,4300.8,3.2078]
[1757017003030,0.1891,4301.0,4300.6,0.243]
[1757017003326,0.1891,4301.0,4300.6,0.66149]
[1757017003527,0.4435,4300.9,4300.6,0.243]
[1757017003828,0.1891,4301.0,4300.6,0.243]
[1757017004027,0.1891,4301.0,4300.7,0.243]
[1757017004224,0.4435,4300.4,4300.3,3.4508]
[1757017004628,0.4435,4300.4,4300.3,0.243]
[1757017004929,0.4435,4300.9,4300.3,0.243]
[1757017005227,0.6326,4301.0,4300.5,0.4185]
[1757017005427,0.1891,4301.0,4300.6,0.243]
[1757017005933,0.4435,4300.9,4300.6,0.243]
[1757017006233,0.1891,4301.0,4300.6,0.243]
[1757017006428,0.4435,4300.9,4300.6,0.243]
[1757017006628,0.4435,4300.9,4300.2,0.41853]
[1757017006827,0.1891,4300.5,4300.1,3.2078]
[1757017007030,0.4435,4300.4,4300.2,0.243]
[1757017007428,0.4435,4300.4,4300.2,0.41853]
[1757017007625,0.6326,4301.0,4300.8,0.41848]
[1757017007933,0.4355,4301.8,4301.4,0.0169]
[1757017008227,0.4355,4301.8,4301.6,0.41839]
[1757017008830,0.4355,4301.8,4301.6,0.43529]
[1757017009033,0.6246,4302.0,4301.7,0.41838]
[1757017009422,0.4355,4301.9,4301.6,0.0169]
[1757017009635,0.1891,4302.0,4301.6,0.0169]
[1757017009830,0.4355,4301.9,4301.6,0.0169]
[1757017010129,0.4355,4301.9,4301.7,0.41839]
[1757017010330,0.4355,4302.4,4301.9,0.41837]
[1757017010530,0.4355,4302.4,4302.0,0.243]
[1757017010728,0.1862,4302.0,4301.8,3.2078]
[1757017010928,0.4355,4301.9,4301.8,3.2078]
[1757017011123,0.4355,4302.3,4302.0,0.41836]
[1757017011329,0.1891,4302.5,4302.2,0.43524]
[1757017011534,0.1891,4302.5,4301.9,0.243]
[1757017011832,0.4355,4302.4,4301.9,0.243]
[1757017012133,0.4355,4302.4,4301.9,0.66137]
[1757017012327,0.4355,4302.4,4301.9,0.243]
[1757017012528,0.4355,4302.4,4301.9,0.41837]
[1757017012834,0.4355,4302.4,4302.0,0.243]
[1757017013733,0.4355,4301.9,4301.8,3.4508]
[1757017014034,0.4355,4301.9,4301.8,3.2078]
[1757017015335,0.4355,4301.9,4301.8,3.4508]
[1757017015736,0.4355,4302.3,4301.8,3.4508]
[1757017015931,0.1891,4302.5,4302.1,0.41835]
[1757017016238,0.4355,4302.4,4302.2,0.41834]
[1757017016432,0.1891,4302.5,4302.2,0.41834]
[1757017017335,0.4355,4302.4,4302.3,0.41832]
[1757017017636,0.6246,4302.5,4302.3,0.41832]
[1757017017936,3.394,4303.0,4302.6,0.4183]
[1757017018434,0.4355,4302.9,4302.5,0.66131]
[1757017018637,0.4355,4302.9,4302.5,0.243]
[1757017018825,3.394,4303.0,4302.5,0.243]
[1757017019031,3.394,4303.0,4302.5,0.66131]
[1757017019337,0.4355,4302.9,4302.5,0.66131]
[1757017019737,0.4355,4302.9,4302.5,0.243]
[1757017020128,0.4355,4301.9,4301.8,3.62618]
[1757017020332,0.4355,4301.9,4301.8,3.4508]
[1757017021642,0.4355,4301.4,4301.3,3.2078]
[1757017021845,0.1862,4302.0,4301.4,0.41841]
[1757017022030,0.1862,4302.0,4301.5,0.41841]
[1757017022031,0.4355,4301.9,4301.5,0.41841]
[1757017022236,0.1862,4302.0,4301.4,0.41842]
[1757017022541,0.1862,4302.0,4301.5,0.41841]
[1757017022730,0.4355,4301.4,4301.3,3.62622]
[1757017022932,0.4355,4301.4,4301.3,3.2078]
[1757017023137,0.4355,4301.4,4301.3,3.62623]
[1757017023334,0.4355,4301.4,4301.3,3.86923]
[1757017023947,0.4355,4301.4,4301.3,3.4508]
[1757017024340,0.4355,4301.4,4301.3,3.2078]
[1757017024540,0.4355,4301.4,4301.3,3.4508]
[1757017026342,0.4355,4301.4,4301.3,3.86923]
[1757017026543,0.4355,4301.4,4301.3,3.4508]
[1757017027349,0.7505,4301.4,4301.3,3.5048]
[1757017027845,4.4355,4301.4,4300.4,3.2078]
[1757017028050,0.6217,4300.5,4300.4,3.2078]
[1757017032452,0.9367,4300.5,4300.4,3.2348]
[1757017032654,0.9367,4300.5,4300.4,3.2618]
[1757017033255,1.2326,4300.5,4300.4,3.2618]
[1757017033555,1.2326,4300.5,4300.4,3.2348]
[1757017033953,1.2326,4300.5,4300.4,3.2078]
[1757017034154,5.46513,4300.5,4300.2,0.242]
[1757017034457,0.18473862,4300.7,4299.9,3.4498]
[1757017034759,0.18473862,4300.7,4300.6,0.0709]
[1757017034946,0.315,4300.7,4300.6,0.054]
[1757017035151,0.1862,4300.5,4300.4,3.2078]
[1757017035353,0.9367,4300.5,4300.4,3.2348]
[1757017035547,0.9367,4300.5,4300.4,3.4778]
[1757017036159,0.1862,4300.0,4299.9,3.2078]
[1757017036357,0.6217,4300.0,4299.9,3.2078]
[1757017037152,0.6217,4300.0,4299.9,3.4508]
[1757017037353,0.6217,4300.0,4299.4,3.2078]
[1757017037557,0.6217,4299.5,4299.4,3.2078]
[1757017037749,0.6217,4299.5,4299.4,3.4508]
[1757017037953,0.6217,4299.5,4299.4,3.2078]
[1757017038655,0.1862,4299.5,4298.9,3.2078]
[1757017038856,0.6096,4299.0,4298.9,3.2078]
[1757017039857,0.1753,4298.5,4298.3,3.2078]
[1757017040055,0.4343,4298.4,4298.3,3.2078]
[1757017040964,0.1753,4298.5,4298.1,0.243]
[1757017041151,0.4343,4298.9,4298.3,0.0097]
[1757017041463,0.4343,4298.9,4298.4,0.243]
[1757017041961,0.6096,4298.5,4298.4,0.243]
[1757017044763,0.6096,4298.5,4298.4,0.274]
[1757017045354,0.9259,4298.5,4298.4,0.274]
[1757017045566,0.801,4298.5,4298.2,3.2078]
[1757017045766,0.6257,4298.3,4298.2,3.2078]
[1757017046067,1.06,4298.3,4298.2,3.2388]
[1757017046564,1.06,4298.3,4298.2,0.031]
[1757017047364,1.06,4298.3,4298.0,0.242]
[1757017048366,0.4916,4298.0,4297.9,0.0155]
[1757017048564,1.2353,4298.0,4297.9,0.0155]
[1757017048766,1.2353,4298.0,4297.9,0.2575]
[1757017049768,1.2353,4298.0,4297.9,0.242]
[1757017050466,1.2353,4298.0,4297.9,0.2575]
[1757017050673,1.06,4297.9,4297.8,0.242]
[1757017050864,0.6257,4297.9,4297.6,3.62657]
[1757017051069,0.6257,4297.9,4297.8,0.242]
[1757017051269,0.6257,4297.9,4297.8,0.67626]
[1757017051473,1.06,4297.9,4297.8,0.69176]
[1757017052161,0.4343,4297.9,4297.8,0.69176]
[1757017052567,1.06,4297.9,4297.8,0.242]
[1757017052768,0.6257,4297.9,4297.8,0.242]
[1757017053063,0.6257,4297.9,4297.8,0.2575]
[1757017053263,1.06,4297.9,4297.8,0.2575]
[1757017053463,1.06,4297.9,4297.8,0.242]
[1757017053665,0.4343,4297.8,4297.6,3.2078]
[1757017053868,1.06,4297.7,4297.6,3.2078]
[1757017054175,1.06,4297.7,4297.6,3.4498]
[1757017054764,1.06,4297.7,4297.6,3.89958]
[1757017054970,0.7506,4297.7,4297.6,3.89958]
[1757017055171,1.06,4297.7,4297.6,3.4653]
[1757017055674,1.06,4297.7,4297.6,3.2078]
[1757017056363,1.06,4297.2,4297.1,3.2078]
[1757017056769,0.6257,4297.2,4296.3,3.6624]
[1757017056970,0.7506,4296.4,4296.3,4.93321]
[1757017057370,0.1753,4297.0,4296.5,0.41888]
[1757017057575,0.4343,4296.9,4296.8,1.0645]
[1757017057776,0.4343,4296.9,4296.8,1.3065]
[1757017057977,0.7506,4297.3,4297.2,0.3004]
[1757017058272,1.06,4297.3,4297.2,0.3004]
[1757017058470,1.06,4296.9,4296.8,0.242]
[1757017058677,0.4343,4296.9,4296.8,1.27077]
[1757017058973,0.7506,4296.9,4296.8,1.27077]
[1757017059578,0.7506,4296.9,4296.8,0.8519]
[1757017060078,0.7506,4296.9,4296.8,1.27076]
[1757017060276,0.4343,4297.7,4297.3,0.4546]
[1757017060474,0.3163,4297.7,4297.6,1.02869]
[1757017060678,0.4916,4298.0,4297.9,0.6099]
[1757017061078,0.7506,4298.0,4297.9,0.6099]
[1757017061376,0.7506,4298.0,4297.9,1.48326]
[1757017061573,0.7506,4298.0,4297.9,1.0645]
[1757017061768,0.9259,4298.0,4297.9,0.6099]
[1757017062079,1.2353,4298.0,4297.6,0.242]
[1757017062292,1.2353,4298.0,4297.6,0.41879]
[1757017062588,1.06,4297.7,4297.6,0.5424]
[1757017062786,1.06,4297.7,4297.6,0.242]
[1757017064384,1.06,4297.7,4297.6,0.3004]
[1757017064584,1.06,4297.7,4297.3,0.242]
[1757017064791,0.3163,4297.4,4297.3,0.96121]
[1757017064988,0.7506,4297.4,4297.3,1.72531]
[1757017065187,0.1753,4297.0,4296.9,3.2078]
[1757017065385,1.2353,4297.0,4296.5,0.41889]
[1757017065588,0.7506,4296.5,4296.4,4.2366]
[1757017065889,0.7506,4296.9,4296.8,0.3004]
[1757017066588,0.7506,4296.9,4296.8,1.0645]
[1757017066795,1.06,4296.9,4296.8,0.6099]
[1757017067688,0.7506,4296.9,4296.8,0.6099]
[1757017067991,0.7506,4296.9,4296.8,1.074]
[1757017068193,0.7506,4296.9,4296.8,1.02876]
[1757017068390,0.189,4296.5,4296.4,3.2078]
[1757017068695,1.2365,4296.5,4296.4,3.4488]
[1757017068888,1.2365,4296.5,4296.4,3.2078]
[1757017069193,1.2365,4296.5,4296.4,4.2276]
[1757017069386,1.2365,4296.5,4296.4,3.8087]
[1757017069581,1.2365,4296.5,4296.4,4.2276]
[1757017069994,0.8019,4296.0,4295.9,3.2078]
[1757017070189,1.2365,4296.0,4295.9,3.2078]
[1757017070386,1.2365,4296.0,4295.9,3.511]
[1757017070691,1.2365,4296.0,4295.9,3.2078]
[1757017070886,1.2365,4296.0,4295.9,3.8087]
[1757017071090,0.7444,4296.9,4296.8,0.72206]
[1757017071290,0.7444,4296.9,4296.8,0.6009]
[1757017071493,1.0475,4296.9,4296.8,0.6009]
[1757017071794,0.7444,4296.9,4296.8,0.6009]
[1757017072484,3.3831,4297.0,4296.9,1.48386]
[1757017072700,3.3831,4297.0,4296.9,1.065]
[1757017072701,3.6424,4297.0,4296.9,1.065]
[1757017072895,0.7444,4297.0,4296.9,0.6009]
[1757017073096,3.996,4297.5,4297.4,0.3032]
[1757017073390,4.4306,4297.5,4297.4,0.3032]
[1757017074687,1.2228,4297.5,4297.4,0.3032]
[1757017076582,1.2228,4297.5,4297.4,0.6009]
[1757017077292,0.3098,4297.5,4297.4,1.065]
[1757017077489,0.9334,4297.5,4297.4,0.8419]
[1757017078092,1.2365,4297.5,4297.1,0.41883]
[1757017078293,1.2365,4297.5,4296.9,3.2078]
[1757017078294,1.2365,4297.0,4296.9,3.2078]
[1757017080084,0.4346,4296.9,4296.8,0.5442]
[1757017080295,1.0475,4296.9,4296.8,0.5442]
[1757017080489,1.0475,4296.9,4296.8,0.8419]
[1757017080694,1.0475,4296.9,4296.8,1.26076]
[1757017080892,1.0475,4297.4,4297.3,0.6009]
[1757017081198,0.4346,4297.3,4297.2,0.241]
[1757017081494,1.0475,4297.3,4297.2,0.241]
[1757017081795,1.0475,4297.1,4297.0,0.241]
[1757017082691,0.7444,4297.1,4297.0,1.26073]
[1757017082896,0.9334,4297.5,4297.4,0.3032]
[1757017083099,0.7444,4297.5,4297.4,1.306]
[1757017083298,0.9334,4297.5,4297.4,1.0197]
[1757017083490,0.9334,4297.5,4297.4,1.2607]
[1757017083691,0.9334,4297.5,4297.4,0.8419]
[1757017084397,1.2365,4297.5,4297.4,1.26071]
[1757017084590,1.2365,4297.5,4297.4,1.72481]
[1757017084591,0.4346,4297.5,4297.4,1.72481]
[1757017085393,1.2365,4297.5,4297.4,0.6009]
[1757017085703,1.2365,4297.5,4297.4,0.8419]
[1757017086002,1.2365,4297.5,4297.4,1.26071]
[1757017086688,1.2365,4297.5,4297.4,0.8419]
[1757017086893,1.2365,4297.5,4297.4,0.6009]
[1757017087089,1.2365,4297.5,4297.4,0.8419]
[1757017087294,0.7444,4297.5,4297.4,1.72481]
[1757017087497,1.2365,4297.5,4297.4,0.8419]
[1757017087702,1.2365,4297.5,4297.4,0.5442]
[1757017088000,1.2365,4297.5,4297.4,1.26071]
[1757017088302,1.2365,4297.5,4297.4,0.8419]
[1757017088501,1.2365,4297.0,4296.9,0.72206]
[1757017088689,1.2365,4297.0,4296.9,0.96306]
[1757017088897,0.189,4298.0,4297.3,1.065]
[1757017089097,0.7444,4297.9,4297.8,1.48377]
[1757017089496,0.7444,4297.9,4297.8,0.8419]
[1757017089698,1.0475,4297.9,4297.8,0.8419]
[1757017090601,0.7444,4297.9,4297.8,1.306]
[1757017091001,0.9334,4298.5,4298.4,0.6009]
[1757017091196,0.9334,4298.5,4298.4,1.065]
[1757017091397,0.9334,4298.5,4298.4,0.6009]
[1757017091805,1.2365,4298.5,4298.4,0.6009]
[1757017092005,1.2365,4298.5,4298.3,0.241]
[1757017092201,1.2365,4298.5,4297.9,0.41876]
[1757017092395,1.2365,4298.5,4298.0,0.65975]
[1757017092396,0.4346,4298.4,4298.0,0.65975]
[1757017092595,0.7444,4298.1,4298.0,1.26065]
[1757017092798,0.4346,4298.4,4298.3,0.6009]
[1757017093006,0.7444,4298.4,4298.3,1.065]
[1757017093306,1.0475,4298.4,4298.3,0.6009]
[1757017093494,1.0475,4298.4,4298.3,1.01962]
[1757017093700,0.7444,4298.4,4298.3,1.48372]
[1757017093898,0.7444,4298.4,4298.3,1.065]
[1757017094097,1.0475,4298.4,4298.3,0.6009]
[1757017094609,0.7444,4298.4,4298.3,4.2728]
[1757017094995,3.2078,4299.1,4298.6,0.41869]
[1757017095306,0.3098,4299.1,4299.0,1.065]
[1757017095494,0.6236,4299.0,4298.6,0.241]
[1757017095699,1.0475,4298.7,4298.6,1.26059]
[1757017096005,1.0475,4298.7,4298.6,1.72469]
[1757017096201,1.0475,4298.7,4298.6,42.52469]
[1757017096410,0.4988,4299.0,4298.9,0.6009]
[1757017096595,0.9334,4299.0,4298.9,0.6009]
[1757017096802,0.9334,4299.0,4298.9,1.01957]
[1757017097004,3.2078,4299.8,4299.4,1.065]
[1757017097005,1.2365,4299.5,4299.4,1.065]
[1757017097304,1.2365,4299.5,4299.4,0.6009]
[1757017098303,0.4346,4299.5,4299.4,1.0414]
[1757017098603,0.7277,4299.5,4299.4,0.6009]
[1757017098912,0.9131,4299.5,4299.4,0.6009]
[1757017100202,0.4565,4299.7,4299.5,0.4405]
[1757017100402,0.4565,4299.7,4299.6,1.0155]
[1757017101908,0.7496,4299.7,4299.6,1.0155]
[1757017102611,1.0481,4299.7,4299.6,0.575]
[1757017103311,0.1854,4299.5,4299.3,3.6483]
[1757017103503,0.4565,4299.5,4299.4,1.2555]
[1757017106408,0.7496,4299.5,4299.4,1.2555]
[1757017106605,0.4565,4299.9,4299.4,1.67412]
[1757017106999,3.2078,4300.3,4299.4,0.815]
[1757017107407,1.2371,4300.0,4299.9,0.2812]
[1757017109815,1.2371,4300.0,4299.8,0.24]
[1757017112415,0.1854,4299.5,4299.3,3.2078]
[1757017112716,1.2335,4299.5,4299.4,0.24]
[1757017112917,1.2335,4299.5,4299.4,0.5212]
[1757017113520,0.4565,4299.4,4299.2,0.24]
[1757017113710,0.5916,4299.3,4299.2,0.24]
[1757017113907,0.5916,4298.8,4298.7,3.2078]
[1757017114117,1.0481,4298.8,4298.7,3.4478]
[1757017114316,1.0481,4298.8,4298.7,0.24]
[1757017115114,1.0481,4298.6,4298.1,3.2078]
[1757017115315,1.0481,4298.6,4298.5,0.24]
[1757017116619,0.4565,4298.9,4298.5,0.3861]
[1757017116826,0.7496,4298.9,4298.8,0.575]
[1757017117017,1.0481,4298.9,4298.8,0.575]
[1757017117214,1.0481,4298.9,4298.8,0.5212]
[1757017117419,1.0481,4298.9,4298.8,0.815]
[1757017117826,1.0481,4298.9,4298.8,0.575]
[1757017118028,1.0481,4298.9,4298.8,0.815]
[1757017118825,1.0481,4298.9,4298.8,0.2812]
[1757017119016,0.4565,4298.8,4298.6,3.2078]
[1757017119226,1.0481,4298.7,4298.6,3.2078]
[1757017119418,1.0481,4298.7,4298.6,3.4478]
[1757017119620,1.0481,4298.7,4298.6,3.729]
[1757017120027,1.0481,4298.7,4298.6,4.0228]
[1757017121723,0.7496,4298.7,4298.6,4.88199]
[1757017121924,0.4785,4299.0,4298.9,1.0155]
[1757017122123,0.1854,4299.5,4299.4,1.0155]
[1757017122327,0.4785,4299.5,4299.4,1.2555]
[1757017122530,1.2335,4299.5,4299.4,0.815]
[1757017122826,1.2335,4299.5,4299.4,0.2812]
[1757017123018,1.2335,4299.5,4299.4,0.5212]
[1757017123223,1.2335,4299.5,4299.4,0.24]
[1757017123821,0.4565,4299.4,4299.1,3.2078]
[1757017124028,1.0481,4298.6,4298.5,3.489]
[1757017124226,0.1854,4299.0,4298.5,4.882]
[1757017124534,1.0481,4299.4,4299.3,0.2812]
[1757017124919,1.0481,4299.9,4299.8,0.2812]
[1757017125126,1.0481,4299.9,4299.8,0.575]
[1757017125931,3.2078,4300.2,4299.8,1.43408]
[1757017126130,0.4565,4300.1,4300.0,1.0155]
[1757017126431,1.0481,4300.1,4300.0,0.815]
[1757017127334,1.0481,4300.1,4300.0,0.24]
[1757017129732,0.1678,4300.0,4299.6,44.0078]
[1757017129926,0.5759,4299.8,4299.7,0.542]
[1757017130234,1.0278,4299.8,4299.7,0.542]
[1757017130730,1.0278,4299.8,4299.7,1.0145]
[1757017130933,1.0278,4299.8,4299.7,0.8211]
[1757017131128,0.4519,4299.7,4299.6,44.0078]
[1757017131323,1.0278,4299.7,4299.6,3.2078]
[1757017131728,0.7437,4299.0,4298.8,3.2078]
[1757017132034,1.0278,4298.9,4298.8,3.5098]
[1757017132230,1.0278,4298.9,4298.8,3.7498]
[1757017132928,1.0278,4298.9,4298.8,3.2078]
[1757017135123,1.0278,4298.9,4298.7,0.24]
[1757017136726,0.5759,4298.2,4298.1,3.5098]
[1757017136924,0.4519,4298.5,4298.4,1.0145]
[1757017137125,0.4519,4298.5,4298.4,1.2545]
[1757017138133,0.1678,4299.5,4299.3,1.0145]
[1757017138134,0.4519,4299.4,4299.3,1.0145]
[1757017138331,0.4519,4299.4,4299.3,1.2545]
[1757017140336,0.7524,4299.4,4299.3,1.2545]
[1757017141743,1.0278,4299.9,4299.8,0.302]
[1757017141937,1.0278,4299.9,4299.8,0.542]
[1757017142141,1.0278,4299.9,4299.8,0.24]
[1757017142438,1.0278,4299.9,4299.4,0.24]
[1757017142642,0.4683,4299.5,4299.4,0.8211]
[1757017142834,0.9202,4299.5,4299.4,0.8211]
[1757017144444,1.1956,4299.5,4299.4,0.8211]
[1757017144840,0.7437,4299.5,4299.2,3.2078]
[1757017145037,1.0278,4299.3,4299.2,3.2078]
[1757017145439,0.4519,4299.3,4299.2,4.4623]
[1757017145640,0.9202,4299.5,4299.4,1.0145]
[1757017145839,0.9202,4299.5,4299.4,1.2545]
[1757017146439,0.7437,4300.0,4299.9,0.302]
[1757017146640,0.1678,4300.5,4300.2,0.41853]
[1757017146946,0.4683,4300.5,4300.4,4.2223]
[1757017147240,1.0278,4300.7,4300.4,2.7504]
[1757017147439,1.0278,4300.7,4299.0,2.88723825]
[1757017147440,3.3756,4300.5,4299.0,2.57249041]
[1757017147747,33.73913844,4300.4,4297.5,0.1486]
[1757017148046,0.62293844,4300.3,4297.5,0.1486]
[1757017148239,0.85554844,4300.3,4297.5,0.1486]
[1757017148450,1.83955961,4300.2,4297.5,0.1486]
[1757017148641,32.2162,4300.4,4297.5,0.1486]
[1757017148642,1.83955961,4300.1,4297.5,0.1486]
[1757017148837,0.62293844,4300.0,4297.5,0.1486]
[1757017149048,3.2078,4297.6,4297.5,0.582]
[1757017153642,3.2078,4297.6,4297.5,2.9072]
[1757017154751,3.2078,4297.6,4297.5,3.4883]
[1757017155645,3.2078,4297.6,4297.5,7.4883]
[1757017155845,2.9648,4298.2,4298.1,3.3397]
[1757017156046,0.243,4298.4,4298.2,2.7586]
[1757017156246,0.243,4298.4,4298.3,1.0145]
[1757017157654,0.3815,4298.4,4298.3,1.0145]
[1757017157944,0.52,4298.4,4298.3,0.7354]
[1757017158353,0.52,4298.4,4298.3,0.4334]
[1757017158550,0.3636,4298.2,4298.0,0.1732]
[1757017158752,3.5714,4298.2,4298.0,0.1732]
[1757017158949,3.5714,4298.2,4298.1,0.7751]
[1757017158950,3.4848,4298.2,4298.1,0.7751]
[1757017159149,3.4848,4298.2,4298.1,0.4634]
[1757017160053,3.5708,4298.2,4297.6,0.4634]
[1757017160251,3.5708,4298.2,4297.6,2.7886]
[1757017160649,3.569,4297.7,4297.5,0.1486]
[1757017160849,0.2752,4297.3,4297.2,0.4634]
[1757017162854,0.3612,4297.3,4297.2,0.4634]
[1757017163054,0.2752,4297.3,4297.2,0.7751]
[1757017164560,0.2752,4297.3,4297.2,0.4634]
[1757017165167,0.2752,4297.3,4297.2,0.7751]
[1757017165864,0.2752,4297.3,4297.2,0.4634]
[1757017167166,0.2752,4297.3,4297.2,0.7751]
[1757017168963,0.2752,4297.3,4296.8,0.4634]
[1757017169260,3.483,4297.1,4297.0,1.2657]
[1757017169765,3.483,4297.1,4297.0,0.9588]
[1757017170069,3.483,4297.1,4297.0,0.6471]
[1757017170572,3.569,4297.1,4297.0,0.6471]
[1757017171266,3.569,4297.1,4296.5,0.1732]
[1757017171562,0.242,4297.0,4296.6,3.4072]
[1757017171762,0.3796,4297.0,4296.9,0.3117]
[1757017171966,0.3796,4297.0,4296.9,0.7751]
[1757017172364,0.5172,4297.0,4296.9,0.7751]
[1757017173668,0.5172,4297.0,4296.9,1.082]
[1757017174270,0.3796,4297.0,4296.9,1.082]
[1757017174858,3.2078,4297.1,4296.9,1.082]
[1757017175066,3.2078,4297.1,4297.0,1.68456]
[1757017175266,3.2078,4297.1,4297.0,4.00976]
[1757017175765,3.2078,4297.1,4297.0,3.5909]
[1757017175966,3.2078,4297.1,4297.0,4.00976]
[1757017176170,3.2078,4297.1,4297.0,3.5909]
[1757017176474,3.2078,4297.1,4297.0,4.00976]
[1757017177876,3.2078,4297.1,4297.0,3.5909]
[1757017180271,0.241,4297.4,4297.1,0.4634]
[1757017180472,0.5162,4297.4,4297.3,3.4072]
[1757017180673,0.241,4297.4,4297.3,3.4072]
[1757017180873,0.241,4297.4,4297.3,1.082]
[1757017181179,0.3786,4297.4,4297.3,1.082]
[1757017183480,3.3241,4297.6,4297.5,0.1837]
[1757017183673,3.3241,4297.6,4297.5,1.2657]